[Event "FAI-ch Candidates 2022"]
[Site "Eidi"]
[Date "2022.04.09"]
[Round "1.1"]
[White "Hansen, Herluf"]
[Black "Gregersen, Hedin"]
[Result "0-1"]
[ECO "B07"]
[WhiteElo "1982"]
[BlackElo "1859"]
[Annotator "RC"]
[PlyCount "104"]
[EventDate "2022.04.10"]
[EventType "tourn"]
[EventCountry "FAI"]
[SourceTitle "playchess.com"]
[Source "ChessBase"]
[SourceQuality "1"]
[TimeControl "40/5400+30:1800+30"]

1. e4 {[%emt 0:02:14]} d6 {[%emt 0:00:07]} 2. d4 {[%emt 0:01:49]} Nf6 {[%emt 0:00:09]} 3. Nc3 {[%emt 0:01:06]} g6 {[%emt 0:00:08]} 4. Bg5 {[%emt 0:02:18]} Bg7 {[%emt 0:00:11]} 5. Qd2 {[%emt 0:00:25]} h6 {[%emt 0:00:35]} 6. Bh4 {[%emt 0:02:44]} g5 {[%emt 0:02:58]} 7. Bg3 {[%emt 0:00:19]} Nh5 {[%emt 0:00:54]} 8. Bc4 {[%emt 0:03:57]} Nc6 {[%emt 0:06:56]} 9. Nge2 {[%emt 0:01:01]} e6 {[%emt 0:04:24]} 10. f3 {[%emt 0:01:13]} Nxg3 {[%emt 0:00:51]} 11. hxg3 {[%emt 0:00:19]} Bd7 {[%emt 0:01:57]} 12. Nd1 {[%emt 0:04:11]} Qf6 {[%emt 0:09:45]} 13. c3 {[%emt 0:00:32]} O-O-O {[%emt 0:07:08]} 14. Ne3 {[%emt 0:01:52]} Kb8 {[%emt 0:04:11]} 15. O-O-O {[%emt 0:05:13]} Na5 {[%emt 0:08:39]} 16. Bd3 {[%emt 0:02:11]} Ba4 {[%emt 0:07:00]} 17. Rdf1 {[%emt 0:00:39]} d5 {[%emt 0:03:26]} 18. e5 {[%emt 0:01:09]} Qe7 {[%emt 0:00:18]} 19. f4 {[%emt 0:00:17]} c5 {[%emt 0:02:03]} 20. f5 {[%emt 0:02:38]} cxd4 {[%emt 0:03:50]} 21. f6 {[%emt 0:04:32]} dxe3 {[%emt 0:01:14]} 22. Qxe3 {[%emt 0:01:06]} Bxf6 {[%emt 0:04:23]} 23. Rxf6 {[%emt 0:00:23]} Qd7 {[%emt 0:16:29]} 24. Nd4 {[%emt 0:04:45]} Nc6 {[%emt 0:01:30]} 25. Rhf1 {[%emt 0:06:33]} Nxd4 {[%emt 0:00:29]} 26. Qxd4 {[%emt 0:00:46]} Rdf8 {[%emt 0:01:34]} 27. Bg6 {[%emt 0:00:34]} Bb5 {[%emt 0:02:06]} 28. Rxf7 {[%emt 0:02:29]} Rxf7 {[%emt 0:03:03]} 29. Rxf7 {[%emt 0:00:16]} Qd8 {[%emt 0:02:04]} 30. Qb4 {[%emt 0:02:09]} Qb6 {[%emt 0:01:48]} 31. Qd4 {[%emt 0:04:01]} Qxd4 {[%emt 0:03:54]} 32. cxd4 {[%emt 0:00:03]} Be2 {[%emt 0:01:22]} 33. Re7 {[%emt 0:03:31]} Bg4 {[%emt 0:00:28]} 34. Bf7 {[%emt 0:00:19]} Rh7 {[%emt 0:00:44]} 35. Re8+ {[%emt 0:00:25]} Kc7 {[%emt 0:00:08]} 36. Bxe6 {[%emt 0:00:10]} Bxe6 {[%emt 0:01:09]} 37. Rxe6 {[%emt 0:00:03]} Rf7 {[%emt 0:00:19]} 38. Rd6 {[%emt 0:00:26]} Rf1+ {[%emt 0:00:22]} 39. Kc2 {[%emt 0:00:08]} Rf2+ {[%emt 0:00:06]} 40. Kc3 {[%emt 0:00:00]} Rxg2 {[%emt 0:00:00]} 41. Rxd5 {[%emt 0:15:34]} Rxg3+ {[%emt 0:15:09]} 42. Kc4 {[%emt 0:00:27]} Re3 {[%emt 0:00:38]} 43. Rd6 {[%emt 0:00:30]} h5 {[%emt 0:00:48]} 44. Rg6 {[%emt 0:00:28]} g4 {[%emt 0:02:42]} 45. Kd5 {[%emt 0:00:31]} g3 {[%emt 0:00:35]} 46. Rg7+ {[%emt 0:00:13]} Kb6 {[%emt 0:00:58]} 47. Kd6 {[%emt 0:00:23]} h4 {[%emt 0:00:12]} 48. e6 {[%emt 0:07:04]} h3 {[%emt 0:00:31]} 49. e7 {[%emt 0:00:22]} h2 {[%emt 0:01:35]} 50. Rxg3 {[%emt 0:02:02]} Rxg3 {[%emt 0:02:40]} 51. e8=Q {[%emt 0:01:19]} h1=Q {[%emt 0:00:12]} 52. Qd8+ {[%emt 0:02:16]} Ka6 {[%emt 0:00:45]} 0-1

[Event "FAI-ch Candidates 2022"]
[Site "Eidi"]
[Date "2022.04.09"]
[Round "1.2"]
[White "Danielsen, Andrias"]
[Black "Jacobsen, Heidrikur T."]
[Result "1-0"]
[ECO "B07"]
[WhiteElo "1893"]
[BlackElo "1853"]
[Annotator "NA RC"]
[PlyCount "67"]
[EventDate "2022.04.10"]
[EventType "tourn"]
[EventCountry "FAI"]
[SourceTitle "playchess.com"]
[Source "ChessBase"]
[SourceQuality "1"]
[TimeControl "40/5400+30:1800+30"]

1. e4 {[%emt 0:00:02]} g6 {[%emt 0:02:18]} 2. d4 {[%emt 0:00:35]} Bg7 {[%emt 0:00:16]} 3. Nc3 {[%emt 0:00:52]} d6 {[%emt 0:02:13]} 4. Be3 {[%emt 0:00:52]} Nf6 {[%emt 0:01:40]} 5. Qd2 {[%emt 0:03:04]} O-O {[%emt 0:01:51]} 6. Bh6 {[%emt 0:00:43]} e5 {[%emt 0:02:39]} 7. Bxg7 {[%emt 0:19:42]} Kxg7 {[%emt 0:01:40]} 8. dxe5 {[%emt 0:00:16]} dxe5 {[%emt 0:00:18]} 9. Qxd8 {[%emt 0:00:41]} Rxd8 {[%emt 0:00:08]} 10. Nf3 {[%emt 0:01:17]} Re8 {[%emt 0:03:52]} 11. h3 {[%emt 0:10:36]} a6 {[%emt 0:03:10]} 12. a4 {[%emt 0:05:31]} Nc6 {[%emt 0:00:12]} 13. O-O-O {[%emt 0:14:07]} Be6 {[%emt 0:08:23]} 14. Be2 {[%emt 0:03:55]} Rad8 {[%emt 0:00:18]} 15. Rhe1 {[%emt 0:05:58]} h6 {[%emt 0:01:05]} 16. Bf1 {[%emt 0:00:27]} Rxd1+ {[%emt 0:07:41]} 17. Rxd1 {[%emt 0:00:16]} Nd7 {[%emt 0:00:20]} 18. Nd5 {[%emt 0:02:09]} Bxd5 {[%emt 0:04:14]} 19. exd5 {[%emt 0:00:21]} Nd8 {[%emt 0:01:20]} 20. b4 {[%emt 0:02:12]} f5 {[%emt 0:01:13]} 21. c4 {[%emt 0:00:34]} e4 {[%emt 0:00:32]} 22. Nd4 {[%emt 0:02:16]} Kf6 {[%emt 0:00:21]} 23. c5 {[%emt 0:06:11]} e3 {[%emt 0:03:31]} 24. f4 {[%emt 0:03:32]} Re4 {[%emt 0:00:31]} 25. c6 {[%emt 0:02:11]} bxc6 {[%emt 0:01:11]} 26. dxc6 {[%emt 0:00:17]} Nb6 {[%emt 0:03:28]} 27. a5 {[%emt 0:05:48]} Nd5 {[%emt 0:01:44]} 28. b5 {[%emt 0:00:29]} Nc3 {[%emt 0:03:16]} 29. b6 {[%emt 0:01:14]} Nxd1 {[%emt 0:04:03]} 30. bxc7 {[%emt 0:00:36]} Rxd4 {[%emt 0:00:40]} 31. c8=Q {[%emt 0:00:16]} Nc3 {[%emt 0:03:25]} 32. c7 {[%emt 0:00:49]} Nf7 {[%emt 0:02:50]} 33. Qxa6+ {[%emt 0:00:50]} Rd6 {[%emt 0:00:14]} 34. c8=Q {[%emt 0:01:40]} 1-0

[Event "FAI-ch Candidates 2022"]
[Site "Eidi"]
[Date "2022.04.09"]
[Round "1.3"]
[White "Skaale, Janus"]
[Black "Berg, Margar M."]
[Result "1-0"]
[ECO "B07"]
[WhiteElo "1883"]
[BlackElo "2005"]
[Annotator "RC"]
[PlyCount "83"]
[EventDate "2022.04.10"]
[EventType "tourn"]
[EventCountry "FAI"]
[SourceTitle "playchess.com"]
[Source "ChessBase"]
[SourceQuality "1"]
[TimeControl "40/5400+30:1800+30"]

1. e4 {[%emt 0:00:08]} g6 {[%emt 0:00:32]} 2. d4 {[%emt 0:00:17]} Bg7 {[%emt 0:00:19]} 3. Nc3 {[%emt 0:00:49]} d6 {[%emt 0:01:18]} 4. Be3 {[%emt 0:00:54]} c6 {[%emt 0:01:25]} 5. h3 {[%emt 0:02:32]} Nf6 {[%emt 0:06:28]} 6. f4 {[%emt 0:00:44]} O-O {[%emt 0:01:00]} 7. Bd3 {[%emt 0:05:07]} b5 {[%emt 0:02:28]} 8. e5 {[%emt 0:00:37]} dxe5 {[%emt 0:00:35]} 9. dxe5 {[%emt 0:00:57]} Nd5 {[%emt 0:00:47]} 10. Nxd5 {[%emt 0:00:48]} Qxd5 {[%emt 0:00:52]} 11. Qf3 {[%emt 0:00:48]} Be6 {[%emt 0:06:02]} 12. Be4 {[%emt 0:22:01]} Qc4 {[%emt 0:04:43]} 13. Ne2 {[%emt 0:06:34]} Bd5 {[%emt 0:28:40]} 14. Bxd5 {[%emt 0:07:05]} cxd5 {[%emt 0:00:48]} 15. c3 {[%emt 0:01:30]} e6 {[%emt 0:00:33]} 16. O-O {[%emt 0:01:00]} Nd7 {[%emt 0:02:52]} 17. Qf2 {[%emt 0:07:29]} a6 {[%emt 0:02:15]} 18. Rfd1 {[%emt 0:04:47]} Rac8 {[%emt 0:12:33]} 19. a4 {[%emt 0:01:40]} Rb8 {[%emt 0:07:23]} 20. axb5 {[%emt 0:06:10]} Qxb5 {[%emt 0:02:31]} 21. b4 {[%emt 0:03:03]} Qb7 {[%emt 0:04:49]} 22. Ra5 {[%emt 0:03:16]} f6 {[%emt 0:03:47]} 23. exf6 {[%emt 0:05:38]} Nxf6 {[%emt 0:00:11]} 24. Bd4 {[%emt 0:01:55]} Ne4 {[%emt 0:00:40]} 25. Qe3 {[%emt 0:00:03]} Rbc8 {[%emt 0:05:44]} 26. Rda1 {[%emt 0:02:16]} Rc6 {[%emt 0:00:39]} 27. b5 {[%emt 0:02:02]} axb5 {[%emt 0:02:10]} 28. Ra7 {[%emt 0:03:24]} Bxd4 {[%emt 0:00:11]} 29. Qxd4 {[%emt 0:01:07]} Qb6 {[%emt 0:00:09]} 30. Rg7+ {[%emt 0:01:37]} Kh8 {[%emt 0:00:03]} 31. Raa7 {[%emt 0:01:32]} Qxd4+ {[%emt 0:02:33]} 32. Nxd4 {[%emt 0:00:01]} Rfc8 {[%emt 0:00:59]} 33. Nxc6 {[%emt 0:01:29]} Rxc6 {[%emt 0:00:02]} 34. Rxh7+ {[%emt 0:00:26]} Kg8 {[%emt 0:00:03]} 35. Rag7+ {[%emt 0:01:29]} Kf8 {[%emt 0:00:02]} 36. Rb7 {[%emt 0:00:13]} Kg8 {[%emt 0:00:23]} 37. Rhg7+ {[%emt 0:00:16]} Kf8 {[%emt 0:00:35]} 38. Rxg6 {[%emt 0:00:57]} Nxc3 {[%emt 0:00:13]} 39. f5 {[%emt 0:01:23]} Ne2+ {[%emt 0:01:56]} 40. Kf2 {[%emt 0:00:00]} Nf4 {[%emt 0:00:00]} 41. Rh6 {[%emt 0:19:54]} Kg8 {[%emt 0:18:00]} 42. f6 {[%emt 0:00:17]} 1-0

[Event "FAI-ch Candidates 2022"]
[Site "Eidi"]
[Date "2022.04.09"]
[Round "1.4"]
[White "Hansen Eliasen, Bogi"]
[Black "Nielsen, Jon I Horni"]
[Result "0-1"]
[ECO "E01"]
[WhiteElo "1841"]
[BlackElo "1923"]
[Annotator "RC"]
[PlyCount "106"]
[EventDate "2022.04.10"]
[EventType "tourn"]
[EventCountry "FAI"]
[SourceTitle "playchess.com"]
[Source "ChessBase"]
[SourceQuality "1"]
[TimeControl "40/5400+30:1800+30"]

1. d4 {[%emt 0:00:10]} Nf6 {[%emt 0:00:10]} 2. c4 {[%emt 0:00:08]} e6 {[%emt 0:00:11]} 3. g3 {[%emt 0:00:10]} d5 {[%emt 0:01:12]} 4. Nf3 {[%emt 0:00:13]} Bd6 {[%emt 0:02:55]} 5. Bg2 {[%emt 0:00:48]} b6 {[%emt 0:01:13]} 6. O-O {[%emt 0:01:18]} O-O {[%emt 0:00:21]} 7. cxd5 {[%emt 0:05:31]} exd5 {[%emt 0:00:18]} 8. Nc3 {[%emt 0:00:15]} c6 {[%emt 0:01:50]} 9. Qc2 {[%emt 0:00:37]} Re8 {[%emt 0:04:11]} 10. Re1 {[%emt 0:00:43]} Bb7 {[%emt 0:02:29]} 11. e4 {[%emt 0:05:01]} dxe4 {[%emt 0:00:45]} 12. Nxe4 {[%emt 0:00:17]} Nxe4 {[%emt 0:02:22]} 13. Rxe4 {[%emt 0:00:10]} Nd7 {[%emt 0:00:58]} 14. Bg5 {[%emt 0:09:40]} f6 {[%emt 0:05:19]} 15. Rae1 {[%emt 0:13:27]} Rxe4 {[%emt 0:02:23]} 16. Qxe4 {[%emt 0:01:28]} Nf8 {[%emt 0:00:25]} 17. Bd2 {[%emt 0:01:27]} Qd7 {[%emt 0:04:59]} 18. Nh4 {[%emt 0:03:16]} g6 {[%emt 0:06:56]} 19. Bc3 {[%emt 0:20:49]} Kf7 {[%emt 0:15:02]} 20. Nf3 {[%emt 0:08:19]} Re8 {[%emt 0:05:08]} 21. Qxe8+ {[%emt 0:01:42]} Qxe8 {[%emt 0:00:02]} 22. Rxe8 {[%emt 0:00:13]} Kxe8 {[%emt 0:00:04]} 23. d5 {[%emt 0:00:30]} Kf7 {[%emt 0:00:26]} 24. dxc6 {[%emt 0:01:12]} Bxc6 {[%emt 0:00:38]} 25. Nd2 {[%emt 0:01:55]} Bxg2 {[%emt 0:01:09]} 26. Kxg2 {[%emt 0:00:14]} Ke6 {[%emt 0:00:53]} 27. Ne4 {[%emt 0:03:29]} Be5 {[%emt 0:02:11]} 28. f4 {[%emt 0:03:32]} Bxc3 {[%emt 0:01:03]} 29. Nxc3 {[%emt 0:00:08]} a6 {[%emt 0:00:47]} 30. b4 {[%emt 0:00:35]} Nd7 {[%emt 0:00:36]} 31. Kf3 {[%emt 0:01:35]} f5 {[%emt 0:00:56]} 32. h3 {[%emt 0:00:34]} Nf6 {[%emt 0:01:05]} 33. Ke3 {[%emt 0:03:49]} Nd5+ {[%emt 0:02:18]} 34. Nxd5 {[%emt 0:00:38]} Kxd5 {[%emt 0:00:02]} 35. Kd3 {[%emt 0:00:13]} h6 {[%emt 0:00:24]} 36. h4 {[%emt 0:02:43]} b5 {[%emt 0:00:52]} 37. h5 {[%emt 0:02:54]} gxh5 {[%emt 0:00:08]} 38. Ke3 {[%emt 0:02:41]} Kc4 {[%emt 0:00:17]} 39. a3 {[%emt 0:00:19]} Kc3 {[%emt 0:00:16]} 40. Ke2 {[%emt 0:00:00]} Kb3 {[%emt 0:00:00]} 41. Kd3 {[%emt 0:18:18]} Kxa3 {[%emt 0:15:20]} 42. Kc3 {[%emt 0:00:08]} Ka4 {[%emt 0:00:06]} 43. Kd4 {[%emt 0:01:04]} Kxb4 {[%emt 0:00:02]} 44. Ke5 {[%emt 0:00:13]} Kc5 {[%emt 0:00:13]} 45. Kxf5 {[%emt 0:00:12]} Kd6 {[%emt 0:01:01]} 46. Kg6 {[%emt 0:01:29]} b4 {[%emt 0:00:15]} 47. f5 {[%emt 0:00:21]} b3 {[%emt 0:00:04]} 48. f6 {[%emt 0:00:08]} b2 {[%emt 0:00:06]} 49. f7 {[%emt 0:00:07]} b1=Q+ {[%emt 0:00:10]} 50. Kg7 {[%emt 0:00:04]} Qb2+ {[%emt 0:00:17]} 51. Kg8 {[%emt 0:01:12]} Qb3 {[%emt 0:00:11]} 52. g4 {[%emt 0:00:26]} Ke7 {[%emt 0:00:26]} 53. Kh8 {[%emt 0:00:49]} Kxf7 {[%emt 0:00:17]} 0-1

[Event "FAI-ch Candidates 2022"]
[Site "Eidi"]
[Date "2022.04.10"]
[Round "2.1"]
[White "Gregersen, Hedin"]
[Black "Nielsen, Jon I Horni"]
[Result "1-0"]
[ECO "A30"]
[WhiteElo "1859"]
[BlackElo "1923"]
[Annotator "RC"]
[PlyCount "85"]
[EventDate "2022.04.10"]
[EventType "tourn"]
[EventCountry "FAI"]
[SourceTitle "playchess.com"]
[Source "ChessBase"]
[SourceQuality "1"]
[TimeControl "40/5400+30:1800+30"]

1. g3 {[%emt 0:00:10]} Nf6 {[%emt 0:00:15]} 2. Bg2 {[%emt 0:00:13]} d5 {[%emt 0:00:37]} 3. Nf3 {[%emt 0:00:34]} c5 {[%emt 0:00:08]} 4. O-O {[%emt 0:00:27]} Nc6 {[%emt 0:00:11]} 5. c4 {[%emt 0:01:36]} e5 {[%emt 0:01:35]} 6. cxd5 {[%emt 0:01:55]} Nxd5 {[%emt 0:00:22]} 7. Nc3 {[%emt 0:00:44]} Be6 {[%emt 0:00:47]} 8. Ng5 {[%emt 0:04:37]} Nc7 {[%emt 0:05:05]} 9. d3 {[%emt 0:04:27]} Qd7 {[%emt 0:02:19]} 10. Nxe6 {[%emt 0:03:46]} Nxe6 {[%emt 0:00:39]} 11. a3 {[%emt 0:04:47]} Be7 {[%emt 0:02:38]} 12. Nd5 {[%emt 0:02:00]} O-O {[%emt 0:02:43]} 13. Rb1 {[%emt 0:04:20]} Rac8 {[%emt 0:04:11]} 14. b4 {[%emt 0:02:03]} b6 {[%emt 0:03:55]} 15. f4 {[%emt 0:07:12]} exf4 {[%emt 0:04:06]} 16. gxf4 {[%emt 0:00:48]} Nc7 {[%emt 0:01:22]} 17. Nxe7+ {[%emt 0:05:29]} Nxe7 {[%emt 0:00:06]} 18. bxc5 {[%emt 0:02:45]} Ncd5 {[%emt 0:00:27]} 19. Qd2 {[%emt 0:08:27]} Rxc5 {[%emt 0:01:58]} 20. Bb2 {[%emt 0:02:09]} Rfc8 {[%emt 0:03:01]} 21. Rbc1 {[%emt 0:06:00]} Qa4 {[%emt 0:01:10]} 22. Rc4 {[%emt 0:01:34]} Qb5 {[%emt 0:05:05]} 23. f5 {[%emt 0:09:52]} f6 {[%emt 0:03:07]} 24. e4 {[%emt 0:04:09]} Ne3 {[%emt 0:05:06]} 25. Bxf6 {[%emt 0:03:01]} Nxf1 {[%emt 0:00:17]} 26. Qg5 {[%emt 0:00:58]} Ng6 {[%emt 0:00:25]} 27. fxg6 {[%emt 0:03:08]} Qd7 {[%emt 0:04:40]} 28. gxh7+ {[%emt 0:02:28]} Kxh7 {[%emt 0:02:04]} 29. Qh4+ {[%emt 0:01:47]} Kg8 {[%emt 0:00:44]} 30. Bh3 {[%emt 0:00:28]} Nd2 {[%emt 0:10:11]} 31. Bxd7 {[%emt 0:01:48]} Nf3+ {[%emt 0:00:05]} 32. Kf2 {[%emt 0:00:12]} Nxh4 {[%emt 0:00:23]} 33. Be6+ {[%emt 0:00:27]} Kh7 {[%emt 0:00:46]} 34. Bxh4 {[%emt 0:00:15]} Rxc4 {[%emt 0:01:15]} 35. Bxc4 {[%emt 0:00:09]} a5 {[%emt 0:01:31]} 36. a4 {[%emt 0:00:23]} Rf8+ {[%emt 0:01:46]} 37. Ke3 {[%emt 0:00:11]} Rf1 {[%emt 0:00:23]} 38. Kd4 {[%emt 0:00:46]} Kh6 {[%emt 0:01:26]} 39. Bg3 {[%emt 0:00:25]} Ra1 {[%emt 0:01:04]} 40. Bb5 {[%emt 0:00:00]} Kg6 {[%emt 0:00:00]} 41. Kd5 {[%emt 0:15:19]} Rc1 {[%emt 0:15:49]} 42. Kd6 {[%emt 0:00:18]} Rc5 {[%emt 0:01:51]} 43. e5 {[%emt 0:00:12]} 1-0

[Event "FAI-ch Candidates 2022"]
[Site "Eidi"]
[Date "2022.04.10"]
[Round "2.2"]
[White "Berg, Margar M."]
[Black "Hansen Eliasen, Bogi"]
[Result "1-0"]
[ECO "A10"]
[WhiteElo "2005"]
[BlackElo "1841"]
[Annotator "NA RC"]
[PlyCount "121"]
[EventDate "2022.04.10"]
[EventType "tourn"]
[EventCountry "FAI"]
[SourceTitle "playchess.com"]
[Source "ChessBase"]
[SourceQuality "1"]
[TimeControl "40/5400+30:1800+30"]

1. g3 {[%emt 0:09:29]} f5 {[%emt 0:01:46]} 2. Bg2 {[%emt 0:07:22]} Nf6 {[%emt 0:00:45]} 3. c4 {[%emt 0:00:34]} e6 {[%emt 0:00:39]} 4. Nc3 {[%emt 0:00:29]} Be7 {[%emt 0:04:07]} 5. Nf3 {[%emt 0:08:06]} O-O {[%emt 0:02:19]} 6. O-O {[%emt 0:02:44]} c6 {[%emt 0:09:22]} 7. Qc2 {[%emt 0:04:17]} d5 {[%emt 0:09:45]} 8. cxd5 {[%emt 0:15:46]} cxd5 {[%emt 0:03:51]} 9. d3 {[%emt 0:02:35]} Nc6 {[%emt 0:04:02]} 10. Bf4 {[%emt 0:06:56]} a6 {[%emt 0:18:12]} 11. a3 {[%emt 0:04:37]} Nd7 {[%emt 0:10:40]} 12. d4 {[%emt 0:11:27]} g5 {[%emt 0:07:02]} 13. Be3 {[%emt 0:08:30]} g4 {[%emt 0:01:51]} 14. Ne5 {[%emt 0:02:31]} Ndxe5 {[%emt 0:01:03]} 15. dxe5 {[%emt 0:01:36]} Nxe5 {[%emt 0:04:01]} 16. Rfd1 {[%emt 0:01:43]} Bd7 {[%emt 0:01:56]} 17. Nxd5 $15 {[%emt 0:01:31]} Rc8 {[%emt 0:09:15]} 18. Qb3 {[%emt 0:02:39]} Nc4 {[%emt 0:05:20]} 19. Qxb7 {[%emt 0:01:11]} Bd6 {[%emt 0:01:15]} 20. Qxa6 {[%emt 0:03:29]} Be5 {[%emt 0:02:28]} 21. Nb6 {[%emt 0:01:14]} Nxb6 {[%emt 0:00:39]} 22. Bxb6 {[%emt 0:00:04]} Qe8 {[%emt 0:00:27]} 23. Qd3 {[%emt 0:01:17]} Bc6 {[%emt 0:00:30]} 24. Bxc6 {[%emt 0:01:19]} Rxc6 {[%emt 0:00:14]} 25. Bd4 {[%emt 0:00:29]} Qb8 {[%emt 0:00:54]} 26. Qe3 {[%emt 0:00:22]} Bxd4 {[%emt 0:00:15]} 27. Qxd4 {[%emt 0:00:42]} Rfc8 {[%emt 0:00:41]} 28. b4 {[%emt 0:00:43]} Kf7 {[%emt 0:00:26]} 29. Qd7+ {[%emt 0:00:23]} Kg6 {[%emt 0:00:39]} 30. Qd4 {[%emt 0:00:48]} R8c7 {[%emt 0:00:29]} 31. Qe5 {[%emt 0:00:28]} Qc8 {[%emt 0:00:20]} 32. b5 {[%emt 0:00:38]} Rc1 {[%emt 0:00:36]} 33. b6 {[%emt 0:00:20]} Rxd1+ {[%emt 0:00:12]} 34. Rxd1 {[%emt 0:00:04]} Rc1 {[%emt 0:00:18]} 35. Qd4 {[%emt 0:00:39]} Qc6 {[%emt 0:00:21]} 36. Rxc1 {[%emt 0:00:49]} Qxc1+ {[%emt 0:00:04]} 37. Kg2 {[%emt 0:00:08]} Qc6+ {[%emt 0:00:04]} 38. e4 {[%emt 0:00:58]} fxe4 {[%emt 0:00:25]} 39. Qe3 {[%emt 0:00:21]} Kh5 {[%emt 0:02:11]} 40. Kg1 {[%emt 0:00:00]} h6 {[%emt 0:00:00]} 41. Qb3 {[%emt 0:23:53]} Qc1+ {[%emt 0:18:05]} 42. Kg2 {[%emt 0:00:08]} e3 {[%emt 0:11:10]} 43. Qxe3 {[%emt 0:01:52]} Qc6+ {[%emt 0:00:15]} 44. Kg1 {[%emt 0:00:14]} Qd5 {[%emt 0:01:51]} 45. b7 {[%emt 0:05:42]} Qd1+ {[%emt 0:01:13]} 46. Kg2 {[%emt 0:00:09]} Qd5+ {[%emt 0:00:04]} 47. Kf1 {[%emt 0:00:15]} Qd1+ {[%emt 0:01:04]} 48. Qe1 {[%emt 0:00:09]} Qd3+ {[%emt 0:00:13]} 49. Kg1 {[%emt 0:00:09]} Qb5 {[%emt 0:00:36]} 50. a4 {[%emt 0:01:01]} Qxb7 {[%emt 0:00:33]} 51. Qe5+ {[%emt 0:00:22]} Kg6 {[%emt 0:00:08]} 52. Qxe6+ {[%emt 0:00:06]} Kh7 {[%emt 0:00:17]} 53. Qxg4 {[%emt 0:00:35]} Qb1+ {[%emt 0:01:26]} 54. Kg2 {[%emt 0:00:11]} Qb7+ {[%emt 0:00:27]} 55. Qf3 {[%emt 0:00:45]} Qb6 {[%emt 0:00:38]} 56. Qe4+ {[%emt 0:00:50]} Kg7 {[%emt 0:00:21]} 57. h4 {[%emt 0:00:18]} Qa5 {[%emt 0:00:25]} 58. g4 {[%emt 0:00:23]} Kh8 {[%emt 0:00:28]} 59. h5 {[%emt 0:00:19]} Qa6 {[%emt 0:00:43]} 60. Qe8+ {[%emt 0:00:14]} Kg7 {[%emt 0:00:30]} 61. Qg6+ {[%emt 0:00:10]} 1-0

[Event "FAI-ch Candidates 2022"]
[Site "Eidi"]
[Date "2022.04.10"]
[Round "2.3"]
[White "Jacobsen, Heidrikur T."]
[Black "Skaale, Janus"]
[Result "1-0"]
[ECO "D02"]
[WhiteElo "1853"]
[BlackElo "1883"]
[Annotator "NA RC"]
[PlyCount "97"]
[EventDate "2022.04.10"]
[EventType "tourn"]
[EventCountry "FAI"]
[SourceTitle "playchess.com"]
[Source "ChessBase"]
[SourceQuality "1"]
[TimeControl "40/5400+30:1800+30"]

1. d4 {[%emt 0:00:51]} d5 {[%emt 0:00:13]} 2. c4 {[%emt 0:01:25]} c6 {[%emt 0:00:26]} 3. Nc3 {[%emt 0:00:19]} Nf6 {[%emt 0:00:27]} 4. Bf4 {[%emt 0:00:59]} Bf5 {[%emt 0:08:41]} 5. e3 {[%emt 0:00:44]} e6 {[%emt 0:00:51]} 6. Nf3 {[%emt 0:01:26]} Bb4 {[%emt 0:01:46]} 7. a3 {[%emt 0:06:02]} Bxc3+ {[%emt 0:08:27]} 8. bxc3 {[%emt 0:02:55]} Ne4 {[%emt 0:00:26]} 9. Qb3 {[%emt 0:00:44]} Qb6 {[%emt 0:00:19]} 10. Qxb6 {[%emt 0:08:16]} axb6 {[%emt 0:00:57]} 11. cxd5 {[%emt 0:00:13]} Nxc3 {[%emt 0:05:16]} 12. Bxb8 {[%emt 0:02:15]} Rxb8 {[%emt 0:00:09]} 13. dxc6 {[%emt 0:00:11]} bxc6 {[%emt 0:12:11]} 14. Rc1 {[%emt 0:01:40]} Nb1 {[%emt 0:03:49]} 15. Rxc6 {[%emt 0:01:58]} Nxa3 {[%emt 0:00:51]} 16. Ne5 {[%emt 0:00:57]} b5 {[%emt 0:17:38]} 17. Kd2 {[%emt 0:05:21]} f6 {[%emt 0:03:34]} 18. Nd3 {[%emt 0:00:48]} O-O {[%emt 0:02:32]} 19. Nc5 {[%emt 0:00:33]} b4 {[%emt 0:04:59]} (19... e5 $11) 20. Kc1 {[%emt 0:02:33]} Rfc8 {[%emt 0:01:19]} ({Black should try} 20... e5 $1 $11) 21. Rxc8+ {[%emt 0:01:10]} Rxc8 {[%emt 0:00:01]} 22. Kb2 {[%emt 0:00:14]} e5 $1 {[%emt 0:02:41]} 23. Kb3 {[%emt 0:01:55]} (23. Ba6 $14 Rc6 24. Bb7) 23... exd4 $1 {[%emt 0:04:18]} 24. exd4 {[%emt 0:00:19]} Nc2 {[%emt 0:01:13]} 25. Bc4+ {[%emt 0:01:02]} Kf8 {[%emt 0:00:50]} 26. Rd1 {[%emt 0:03:14]} Ke7 {[%emt 0:02:44]} 27. Nb7 {[%emt 0:01:57]} Rc7 {[%emt 0:09:01]} 28. Na5 {[%emt 0:03:04]} Kd6 {[%emt 0:03:12]} 29. Ka4 {[%emt 0:06:04]} (29. d5 $11 {is superior.}) 29... Ne3 {[%emt 0:03:42]} 30. fxe3 {[%emt 0:00:24]} Bc2+ {[%emt 0:00:30]} 31. Bb3 {[%emt 0:00:05]} Bxd1 {[%emt 0:00:32]} 32. Bxd1 {[%emt 0:00:07]} Rc1 {[%emt 0:01:50]} 33. Bf3 {[%emt 0:00:08]} g5 {[%emt 0:00:49]} 34. h3 {[%emt 0:00:26]} h6 {[%emt 0:00:29]} 35. Kxb4 {[%emt 0:00:06]} Ke6 {[%emt 0:00:20]} 36. d5+ {[%emt 0:00:14]} Kd7 {[%emt 0:00:16]} 37. Nc4 {[%emt 0:00:12]} Rb1+ {[%emt 0:00:14]} 38. Kc5 {[%emt 0:00:08]} Rc1 {[%emt 0:00:06]} 39. Kd4 {[%emt 0:00:09]} Rc2 {[%emt 0:00:27]} 40. d6 {[%emt 0:00:00]} Rc1 {[%emt 0:00:00]} 41. Kd5 {[%emt 0:16:04]} Rb1 {[%emt 0:15:42]} 42. Bg4+ {[%emt 0:00:09]} Kd8 {[%emt 0:00:10]} 43. Ke6 {[%emt 0:00:08]} Rc1 {[%emt 0:00:15]} 44. Nb6 $18 {[%emt 0:00:12]} (44. Na5 $142 Rc2 45. Kf7 Rc7+ 46. dxc7+ Kxc7 47. Kxf6 Kb6 {[#]} 48. e4 $1 h5 49. Bxh5) 44... Rc5 {[%emt 0:00:42]} 45. Nd5 {[%emt 0:00:08]} Rc2 {[%emt 0:00:38]} 46. Kxf6 {[%emt 0:00:32]} Rxg2 {[%emt 0:00:11]} 47. Ne7 {[%emt 0:00:28]} Rc2 {[%emt 0:00:34]} 48. Ke6 {[%emt 0:00:19]} Re2 {[%emt 0:02:21]} 49. Bxe2 {[%emt 0:00:22]} 1-0